fUSD/lending_fUSD_20240630
["ID","MTS","AMOUNT","RATE_DAILY","PERIOD"]
[330759829,1719759048592,-411.24,0.00014035,3]
[330759830,1719759048601,-409.77,0.00014035,3]
[330759831,1719759048611,-655.58,0.00014035,3]
[330759832,1719759048620,-500.0,0.00014035,3]
[330759833,1719759048629,-500.0,0.00014035,3]
[330759834,1719759048638,-500.0,0.00014035,3]
[330759835,1719759048647,-500.0,0.00014035,3]
[330759836,1719759048656,-708.73,0.00014035,3]
[330759837,1719759048665,-491.0,0.00014035,3]
[330759838,1719759048676,-500.0,0.00014035,3]
[330759839,1719759048685,-500.0,0.00014035,3]
[330759840,1719759048695,-500.0,0.00014035,3]
[330759841,1719759048704,-500.0,0.00014035,3]
[330759842,1719759048713,-500.0,0.00014035,3]
[330759843,1719759048723,-294.7,0.00014035,3]
[330759844,1719759048732,-504.64280581,0.00014035,3]
[330759845,1719759048741,-500.0,0.00014035,3]
[330759846,1719759048751,-500.0,0.00014035,3]
[330759847,1719759048760,-500.0,0.00014035,3]
[330759848,1719759048769,-500.0,0.00014035,3]
[330759849,1719759048779,-500.0,0.00014035,3]
[330759850,1719759048788,-500.0,0.00014035,3]
[330759851,1719759048797,-500.0,0.00014035,3]
[330759852,1719759048806,-500.0,0.00014035,3]
[330759853,1719759048815,-471.32,0.00014035,3]
[330759854,1719759048824,-500.0,0.00014035,3]
[330759855,1719759048834,-500.0,0.00014035,3]
[330759857,1719759048843,-500.0,0.00014035,3]
[330759859,1719759048853,-500.0,0.00014035,3]
[330759861,1719759048862,-216.61,0.00014035,3]
[330759863,1719759048871,-542.99,0.00014035,3]
[330759864,1719759048882,-500.0,0.00014035,3]
[330759865,1719759048891,-1361.81,0.00014035,3]
[330759866,1719759048901,-511.376,0.00014035,3]
[330759867,1719759048910,-500.0,0.00014035,3]
[330759868,1719759048921,-500.0,0.00014035,3]
[330759869,1719759048930,-500.0,0.00014035,3]
[330759870,1719759048939,-500.0,0.00014035,3]
[330759871,1719759048948,-500.0,0.00014035,3]
[330759872,1719759048958,-500.0,0.00014035,3]
[330759874,1719759048967,-500.0,0.00014035,3]
[330759876,1719759048976,-500.0,0.00014035,3]
[330759878,1719759048985,-500.0,0.00014035,3]
[330759880,1719759048995,-590.22,0.00014035,3]
[330759882,1719759049004,-500.0,0.00014035,3]
[330759884,1719759049018,-150.0,0.00014062,2]
[330759886,1719759049027,-156.251,0.00014094,2]
[330759888,1719759049037,-159.866,0.00014094,2]
[330759890,1719759049046,-1830.0,0.00014106,2]
[330759892,1719759049056,-1274.0,0.00014106,2]
[330759894,1719759049066,-1657.0,0.00014106,2]
[330759895,1719759049075,-360.0,0.00014106,2]
[330759897,1719759049084,-813.0,0.00014106,2]
[330759899,1719759049096,-166.0,0.00014106,2]
[330759901,1719759049106,-448.0,0.00014106,2]
[330759903,1719759049115,-443.0,0.00014106,2]
[330759905,1719759049124,-618.0,0.00014106,2]
[330759907,1719759049133,-150.0,0.00014106,2]
[330759909,1719759049142,-2415.0,0.00014106,2]
[330759911,1719759049152,-1304.0,0.00014106,2]
[330759913,1719759049161,-1986.0,0.00014106,2]
[330759915,1719759049171,-548.0,0.00014106,2]
[330759917,1719759049180,-3204.0,0.00014106,2]
[330759919,1719759049190,-1663.0,0.00014106,2]
[330759921,1719759049199,-5173.0,0.00014106,2]
[330759923,1719759049208,-5806.0,0.00014106,2]
[330759925,1719759049218,-1198.0,0.00014106,2]
[330759927,1719759049227,-38209.0,0.00014106,2]
[330759929,1719759049236,-291.0,0.00014106,2]
[330759931,1719759049245,-150.0,0.00014106,2]
[330759933,1719759049256,-1069.0,0.00014106,2]
[330759935,1719759049266,-150.0,0.00014106,2]
[330759937,1719759049275,-232.77,0.00014126,2]
[330759939,1719759049284,-880.0,0.0001413,2]
[330759941,1719759049293,-500.0,0.00014134,3]
[330759943,1719759049304,-500.0,0.00014134,3]
[330759945,1719759049313,-500.0,0.00014134,3]
[330759947,1719759049322,-500.0,0.00014134,3]
[330759949,1719759049331,-500.0,0.00014134,3]
[330759951,1719759049340,-699.49,0.00014134,3]
[330759953,1719759049349,-500.0,0.00014134,3]
[330759955,1719759049359,-500.0,0.00014134,3]
[330759956,1719759049368,-500.0,0.00014134,3]
[330759959,1719759049378,-500.0,0.00014134,3]
[330759960,1719759049387,-361.86073405,0.00014134,3]
[330759962,1719759049396,-500.0,0.00014134,3]
[330759964,1719759049406,-500.0,0.00014134,3]
[330759966,1719759049415,-500.0,0.00014134,3]
[330759968,1719759049426,-565.36,0.00014134,3]
[330759970,1719759049435,-500.0,0.00014134,3]
[330759972,1719759049445,-500.0,0.00014134,3]
[330759974,1719759049454,-500.0,0.00014134,3]
[330759976,1719759049463,-636.54,0.00014134,3]
[330759978,1719759049473,-341.77865059,0.00014134,3]
[330759980,1719759049482,-150.0,0.00014134,3]
[330759982,1719759049492,-500.0,0.00014134,3]
[330759984,1719759049502,-500.0,0.00014134,3]
[330759986,1719759049511,-500.0,0.00014134,3]
[330759987,1719759049521,-323.77,0.00014134,3]
[330759988,1719759049530,-500.0,0.00014134,3]
[330759989,1719759049539,-500.0,0.00014134,3]
[330759990,1719759049548,-500.0,0.00014134,3]
[330759991,1719759049558,-500.0,0.00014134,3]
[330759992,1719759049567,-235.43,0.00014134,3]
[330759993,1719759049578,-500.0,0.00014134,3]
[330759994,1719759049587,-500.0,0.00014134,3]
[330759995,1719759049597,-500.0,0.00014134,3]
[330759996,1719759049606,-500.0,0.00014134,3]
[330759997,1719759049615,-791.92,0.00014134,3]
[330759998,1719759049624,-500.0,0.00014134,3]
[330759999,1719759049634,-500.0,0.00014134,3]
[330760000,1719759049643,-500.0,0.00014134,3]
[330760001,1719759049652,-500.0,0.00014134,3]
[330760002,1719759049662,-500.0,0.00014134,3]
[330760003,1719759049673,-500.0,0.00014134,3]
[330760004,1719759049682,-579.92,0.00014134,3]
[330760005,1719759049691,-500.0,0.00014134,3]
[330760006,1719759049700,-500.0,0.00014134,3]
[330760007,1719759049710,-500.0,0.00014134,3]
[330760008,1719759049719,-500.0,0.00014134,3]
[330760009,1719759049729,-1002.91,0.00014134,3]
[330760010,1719759049738,-500.0,0.00014134,3]
[330760011,1719759049748,-500.0,0.00014134,3]
[330760012,1719759049757,-500.0,0.00014134,3]
[330760013,1719759049766,-500.0,0.00014134,3]
[330760014,1719759049775,-500.0,0.00014134,3]
[330760015,1719759049785,-500.0,0.00014135,3]
[330760016,1719759049794,-665.72,0.00014135,3]
[330760017,1719759049803,-500.0,0.00014136,3]
[330760018,1719759049812,-500.0,0.00014136,3]
[330760019,1719759049822,-500.0,0.00014136,3]
[330760020,1719759049831,-500.0,0.00014136,3]
[330760021,1719759049840,-500.0,0.00014136,3]
[330760022,1719759049850,-155.42,0.00014136,3]
[330760023,1719759049859,-500.0,0.00014136,3]
[330760024,1719759049868,-500.0,0.00014136,3]
[330760025,1719759049877,-649.82,0.00014136,3]
[330760026,1719759049887,-500.0,0.00014136,3]
[330760027,1719759049896,-500.0,0.00014136,3]
[330760028,1719759049905,-500.0,0.00014136,3]
[330760029,1719759049914,-500.0,0.00014136,3]
[330760030,1719759049925,-500.0,0.00014136,3]
[330760031,1719759049934,-500.0,0.00014136,3]
[330760032,1719759049942,-500.0,0.00014136,3]
[330760033,1719759049952,-500.0,0.00014136,3]
[330760034,1719759049961,-500.0,0.00014136,3]
[330760035,1719759049970,-2165.81,0.00014136,3]
[330760036,1719759049980,-500.0,0.00014136,3]
[330760037,1719759049989,-500.0,0.00014136,3]
[330760038,1719759049999,-12970.53,0.00014136,3]
[330760039,1719759050011,-500.0,0.00014136,3]
[330760040,1719759050021,-500.0,0.00014136,3]
[330760041,1719759050030,-500.0,0.00014136,3]
[330760042,1719759050040,-500.0,0.00014136,3]
[330760043,1719759050051,-500.0,0.00014136,3]
[330760044,1719759050060,-500.0,0.00014136,3]
[330760045,1719759050069,-1300.21,0.00014136,3]
[330760046,1719759050080,-656.32,0.00014136,3]
[330760047,1719759050090,-1073.9,0.00014136,3]
[330760049,1719759050099,-500.0,0.00014136,3]
[330760051,1719759050109,-500.0,0.00014136,3]
[330760052,1719759050118,-520.83,0.00014136,3]
[330760053,1719759050128,-500.0,0.00014136,3]
[330760054,1719759050137,-500.0,0.00014136,3]
[330760055,1719759050147,-500.0,0.00014136,3]
[330760056,1719759050156,-600.44,0.00014136,3]
[330760057,1719759050165,-500.0,0.00014136,3]
[330760058,1719759050175,-500.0,0.00014136,3]
[330760059,1719759050184,-974.46,0.00014136,3]
[330760060,1719759050194,-500.0,0.00014136,3]
[330760061,1719759050203,-500.0,0.00014136,3]
[330760062,1719759050212,-500.0,0.00014136,3]
[330760063,1719759050222,-452.30182206,0.00014144,3]
[330760064,1719759050231,-500.0,0.00014144,3]
[330760065,1719759050241,-500.0,0.00014144,3]
[330760066,1719759050250,-513.85,0.00014144,3]
[330760067,1719759050259,-2491.27,0.00014144,3]
[330760068,1719759050269,-500.0,0.00014144,3]
[330760069,1719759050279,-620.81,0.00014144,3]
[330760070,1719759050288,-776.8,0.00014144,3]
[330760071,1719759050297,-500.0,0.00014144,3]
[330760072,1719759050307,-500.0,0.00014144,3]
[330760073,1719759050316,-500.0,0.00014144,3]
[330760074,1719759050325,-401.33,0.00014144,3]
[330760075,1719759050334,-500.0,0.00014144,3]
[330760076,1719759050343,-500.0,0.00014144,3]
[330760077,1719759050352,-500.0,0.00014144,3]
[330760078,1719759050362,-500.0,0.00014144,3]
[330760079,1719759050371,-1029.4,0.00014144,3]
[330760080,1719759050381,-500.0,0.00014144,3]
[330760081,1719759050390,-500.0,0.00014144,3]
[330760082,1719759050399,-500.0,0.00014144,3]
[330760083,1719759050408,-546.45,0.00014144,3]
[330760084,1719759050418,-500.0,0.00014144,3]
[330760085,1719759050430,-500.0,0.00014144,3]
[330760086,1719759050439,-500.0,0.00014144,3]
[330760087,1719759050449,-270.56,0.00014144,3]
[330760088,1719759050459,-1780.10223757,0.00014144,2]
[330760089,1719759050468,-500.0,0.00014144,3]
[330760090,1719759050478,-500.0,0.00014144,3]
[330760091,1719759050488,-500.0,0.00014144,3]
[330760092,1719759050497,-844.34505044,0.00014144,2]
[330760093,1719759050508,-500.0,0.00014144,3]
[330760094,1719759050518,-500.0,0.00014144,3]
[330760095,1719759050527,-500.0,0.00014144,3]
[330760096,1719759050537,-500.0,0.00014144,3]
[330760097,1719759050547,-500.0,0.00014144,3]
[330760098,1719759050557,-577.58,0.00014144,3]
[330760099,1719759050567,-500.0,0.00014144,3]
[330760100,1719759050576,-500.0,0.00014145,3]
[330760101,1719759050585,-500.0,0.00014145,3]
[330760102,1719759050595,-500.0,0.00014145,3]
[330760103,1719759050604,-500.0,0.00014145,3]
[330760104,1719759050613,-500.0,0.00014145,3]
[330760105,1719759050623,-722.29,0.00014145,3]
[330760106,1719759050633,-500.0,0.00014145,3]
[330760107,1719759050642,-500.0,0.00014145,3]
[330760108,1719759050652,-500.0,0.00014145,3]
[330760109,1719759050661,-500.0,0.00014145,3]
[330760110,1719759050671,-500.0,0.00014145,3]
[330760111,1719759050681,-500.0,0.00014145,3]
[330760112,1719759050690,-500.0,0.00014145,3]
[330760113,1719759050700,-500.0,0.00014145,3]
[330760114,1719759050709,-500.0,0.00014145,3]
[330760116,1719759050718,-512.0,0.00014145,3]
[330760118,1719759050728,-500.0,0.00014145,3]
[330760119,1719759050737,-500.0,0.00014145,3]
[330760121,1719759050747,-500.0,0.00014145,3]
[330760124,1719759050758,-1616.54,0.00014145,3]
[330760126,1719759050767,-500.0,0.00014145,3]
[330760128,1719759050776,-500.0,0.00014145,3]
[330760130,1719759050786,-500.0,0.00014145,3]
[330760132,1719759050795,-500.0,0.00014145,3]
[330760133,1719759050805,-500.0,0.00014145,3]
[330760134,1719759050814,-223.29,0.00014145,3]
[330760135,1719759050823,-186.54,0.00014145,3]
[330760136,1719759050832,-350.55912563,0.00014145,3]
[330760137,1719759050842,-466.12,0.00014145,3]
[330760138,1719759050852,-500.0,0.00014145,3]
[330760139,1719759050861,-500.0,0.00014145,3]
[330760140,1719759050870,-500.0,0.00014145,3]
[330760141,1719759050879,-655.58,0.00014145,3]
[330760143,1719759050889,-190.68,0.00014145,3]
[330760145,1719759050898,-500.0,0.00014145,3]
[330760147,1719759050907,-500.0,0.00014145,3]
[330760149,1719759050916,-500.0,0.00014145,3]
[330760151,1719759050926,-708.73,0.00014145,3]
[330760153,1719759050935,-500.0,0.00014145,3]
[330760155,1719759050946,-500.0,0.00014145,3]
[330760157,1719759050955,-386.33,0.00014145,3]
[330760159,1719759050964,-500.0,0.00014145,3]
[330760161,1719759050973,-500.0,0.00014145,3]
[330760162,1719759050984,-500.0,0.00014145,3]
[330760163,1719759050994,-500.0,0.00014145,3]
[330760164,1719759051005,-500.0,0.00014145,3]
[330760165,1719759051018,-472.7,0.00014145,3]
[330760166,1719759051027,-500.0,0.00014145,3]
[330760167,1719759051036,-500.0,0.00014145,3]
[330760168,1719759051046,-368.22,0.00014145,3]
[330760169,1719759051056,-628.74,0.00014145,3]
[330760170,1719759051066,-500.0,0.00014145,3]
[330760171,1719759051075,-500.0,0.00014145,3]
[330760172,1719759051085,-500.0,0.00014145,3]
[330760173,1719759051094,-316.92,0.00014145,3]
[330760174,1719759051104,-500.0,0.00014145,3]
[330760175,1719759051114,-1361.81,0.00014145,3]
[330760176,1719759051124,-500.0,0.00014145,3]
[330760177,1719759051133,-326.79,0.00014145,3]
[330760178,1719759051143,-520.25,0.00014145,3]
[330760179,1719759051152,-500.0,0.00014145,3]
[330760180,1719759051162,-500.0,0.00014145,3]
[330760181,1719759051171,-500.0,0.00014145,3]
[330760182,1719759051180,-500.0,0.00014145,3]
[330760183,1719759051189,-500.0,0.00014145,3]
[330760184,1719759051199,-500.0,0.00014145,3]
[330760185,1719759051208,-500.0,0.00014145,3]
[330760186,1719759051217,-1547.98591501,0.00014146,2]
[330760187,1719759051227,-500.0,0.00014244,3]
[330760188,1719759051237,-500.0,0.00014244,3]
[330760189,1719759051246,-500.0,0.00014244,3]
[330760190,1719759051257,-204.09,0.00014244,3]
[330760191,1719759051267,-500.0,0.00014244,3]
[330760192,1719759051276,-699.49,0.00014244,3]
[330760193,1719759051285,-609.55,0.00014244,3]
[330760194,1719759051295,-406.51,0.00014244,3]
[330760195,1719759051304,-269.33,0.00014244,3]
[330760196,1719759051315,-308.71,0.00014244,3]
[330760197,1719759051324,-312.66,0.00014244,3]
[330760198,1719759051334,-500.0,0.00014244,3]
[330760199,1719759051343,-500.0,0.00014244,3]
[330760200,1719759051352,-500.0,0.00014244,3]
[330760201,1719759051361,-544.63,0.00014244,3]
[330760202,1719759051371,-306.9,0.00014244,3]
[330760203,1719759051379,-150.0,0.00014244,3]
[330760204,1719759051389,-500.0,0.00014244,3]
[330760205,1719759051398,-500.0,0.00014244,3]
[330760206,1719759051408,-500.0,0.00014244,3]
[330760207,1719759051417,-500.0,0.00014244,3]
[330760208,1719759051428,-500.0,0.00014244,3]
[330760209,1719759051438,-500.0,0.00014244,3]
[330760210,1719759051447,-500.0,0.00014244,3]
[330760211,1719759051457,-500.0,0.00014244,3]
[330760212,1719759051467,-500.0,0.00014244,3]
[330760213,1719759051476,-500.0,0.00014244,3]
[330760214,1719759051486,-500.0,0.00014244,3]
[330760215,1719759051495,-791.92,0.00014244,3]
[330760216,1719759051505,-500.0,0.00014244,3]
[330760217,1719759051514,-500.0,0.00014244,3]
[330760218,1719759051524,-500.0,0.00014244,3]
[330760219,1719759051534,-500.0,0.00014244,3]
[330760220,1719759051544,-500.0,0.00014244,3]
[330760221,1719759051553,-500.0,0.00014244,3]
[330760222,1719759051563,-579.92,0.00014244,3]
[330760223,1719759051572,-500.0,0.00014244,3]
[330760224,1719759051582,-564.82,0.00014244,3]
[330760225,1719759051591,-384.81,0.00014244,3]
[330760226,1719759051600,-500.0,0.00014244,3]
[330760227,1719759051609,-500.0,0.00014244,3]
[330760228,1719759051619,-1002.91,0.00014244,3]
[330760229,1719759051629,-500.0,0.00014244,3]
[330760230,1719759051640,-500.0,0.00014244,3]
[330760231,1719759051649,-500.0,0.00014244,3]
[330760232,1719759051658,-500.0,0.00014244,3]
[330760233,1719759051667,-500.0,0.00014245,3]
[330760234,1719759051678,-665.72,0.00014245,3]
[330760235,1719759051687,-500.0,0.00014246,3]
[330760236,1719759051697,-500.0,0.00014246,3]
[330760237,1719759051707,-500.0,0.00014246,3]
[330760238,1719759051716,-500.0,0.00014246,3]
[330760239,1719759051726,-500.0,0.00014246,3]
[330760240,1719759051735,-500.0,0.00014246,3]
[330760241,1719759051745,-500.0,0.00014246,3]
[330760242,1719759051754,-500.0,0.00014246,3]
[330760243,1719759051764,-500.0,0.00014246,3]
[330760244,1719759051774,-500.0,0.00014246,3]
[330760245,1719759051784,-444.18,0.00014246,3]
[330760246,1719759051795,-500.0,0.00014246,3]
[330760247,1719759051804,-500.0,0.00014246,3]
[330760248,1719759051813,-500.0,0.00014246,3]
[330760249,1719759051823,-500.0,0.00014246,3]
[330760250,1719759051834,-500.0,0.00014246,3]
[330760251,1719759051844,-2165.81,0.00014246,3]
[330760252,1719759051854,-500.0,0.00014246,3]
[330760253,1719759051864,-500.0,0.00014246,3]
[330760254,1719759051873,-12970.53,0.00014246,3]
[330760255,1719759051883,-500.0,0.00014246,3]
[330760256,1719759051893,-500.0,0.00014246,3]
[330760257,1719759051903,-500.0,0.00014246,3]
[330760258,1719759051913,-157.32,0.00014246,3]
[330760259,1719759051923,-500.0,0.00014246,3]
[330760260,1719759051932,-500.0,0.00014246,3]
[330760261,1719759051942,-1300.21,0.00014246,3]
[330760262,1719759051951,-656.32,0.00014246,3]
[330760263,1719759051961,-1073.9,0.00014246,3]
[330760264,1719759051971,-500.0,0.00014246,3]
[330760265,1719759051981,-500.0,0.00014246,3]
[330760266,1719759051990,-520.83,0.00014246,3]
[330760267,1719759052000,-500.0,0.00014246,3]
[330760268,1719759052013,-500.0,0.00014246,3]
[330760269,1719759052022,-500.0,0.00014246,3]
[330760270,1719759052032,-600.44,0.00014246,3]
[330760271,1719759052042,-500.0,0.00014246,3]
[330760272,1719759052053,-500.0,0.00014246,3]
[330760273,1719759052062,-974.46,0.00014246,3]
[330760274,1719759052073,-500.0,0.00014246,3]
[330760275,1719759052082,-500.0,0.00014246,3]
[330760276,1719759052103,-500.0,0.00014246,3]
[330760277,1719759052114,-500.0,0.00014253,3]
[330760278,1719759052124,-500.0,0.00014253,3]
[330760279,1719759052134,-513.85,0.00014253,3]
[330760280,1719759052143,-2491.27,0.00014253,3]
[330760281,1719759052152,-500.0,0.00014253,3]
[330760282,1719759052162,-776.8,0.00014253,3]
[330760283,1719759052171,-628.35,0.00014253,3]
[330760284,1719759052181,-500.0,0.00014253,3]
[330760285,1719759052190,-500.0,0.00014253,3]
[330760286,1719759052199,-500.0,0.00014253,3]
[330760287,1719759052210,-500.0,0.00014253,3]
[330760288,1719759052220,-500.0,0.00014253,3]
[330760289,1719759052230,-500.0,0.00014253,3]
[330760290,1719759052240,-1029.4,0.00014253,3]
[330760291,1719759052249,-543.8,0.00014253,3]
[330760292,1719759052259,-500.0,0.00014253,3]
[330760293,1719759052268,-500.0,0.00014253,3]
[330760294,1719759052278,-500.0,0.00014253,3]
[330760295,1719759052290,-603.80356098,0.00014253,3]
[330760296,1719759052300,-500.0,0.00014253,3]
[330760297,1719759052311,-500.0,0.00014253,3]
[330760298,1719759052321,-500.0,0.00014253,3]
[330760299,1719759052331,-500.0,0.00014253,3]
[330760300,1719759052343,-500.0,0.00014253,3]
[330760301,1719759052352,-500.0,0.00014253,3]
[330760302,1719759052363,-500.0,0.00014253,3]
[330760303,1719759052373,-489.11,0.00014253,3]
[330760304,1719759052384,-500.0,0.00014253,3]
[330760305,1719759052394,-500.0,0.00014253,3]
[330760306,1719759052405,-500.0,0.00014254,3]
[330760307,1719759052415,-500.0,0.00014254,3]
[330760308,1719759052425,-500.0,0.00014254,3]
[330760309,1719759052435,-500.0,0.00014254,3]
[330760310,1719759052444,-500.0,0.00014254,3]
[330760311,1719759052637,-722.29,0.00014254,3]
[330760312,1719759052659,-244.15,0.00014254,3]
[330760313,1719759052670,-500.0,0.00014254,3]
[330760314,1719759052681,-418.36,0.00014254,3]
[330760315,1719759052690,-320.43,0.00014254,3]
[330760316,1719759052699,-500.0,0.00014254,3]
[330760317,1719759052709,-500.0,0.00014254,3]
[330760318,1719759052718,-597.08,0.00014254,3]
[330760319,1719759052727,-500.0,0.00014254,3]
[330760320,1719759052737,-500.0,0.00014254,3]
[330760321,1719759052748,-500.0,0.00014254,3]
[330760322,1719759052758,-500.0,0.00014254,3]
[330760323,1719759052768,-500.0,0.00014254,3]
[330760324,1719759052777,-1616.54,0.00014254,3]
[330760325,1719759052787,-387.86,0.00014254,3]
[330760326,1719759052796,-500.0,0.00014254,3]
[330760327,1719759052806,-500.0,0.00014254,3]
[330760328,1719759052815,-500.0,0.00014254,3]
[330760329,1719759052825,-500.0,0.00014254,3]
[330760330,1719759052834,-500.0,0.00014254,3]
[330760331,1719759052844,-500.0,0.00014254,3]
[330760332,1719759052853,-500.0,0.00014254,3]
[330760333,1719759052863,-655.58,0.00014254,3]
[330760334,1719759052873,-500.0,0.00014254,3]
[330760335,1719759052883,-500.0,0.00014254,3]
[330760336,1719759052892,-555.92,0.00014254,3]
[330760337,1719759052902,-708.73,0.00014254,3]
[330760338,1719759052912,-500.0,0.00014254,3]
[330760339,1719759052922,-500.0,0.00014254,3]
[330760340,1719759052932,-500.0,0.00014254,3]
[330760341,1719759052942,-500.0,0.00014254,3]
[330760342,1719759052951,-500.0,0.00014254,3]
[330760343,1719759052961,-500.0,0.00014254,3]
[330760344,1719759052970,-500.0,0.00014254,3]
[330760345,1719759052980,-500.0,0.00014254,3]
[330760346,1719759052989,-334.33,0.00014254,3]
[330760347,1719759053000,-500.0,0.00014254,3]
[330760348,1719759053014,-237.24,0.00014254,3]
[330760349,1719759053024,-500.0,0.00014254,3]
[330760350,1719759053033,-500.0,0.00014254,3]
[330760351,1719759053042,-1361.81,0.00014254,3]
[330760352,1719759053057,-500.60346552,0.00014254,3]
[330760353,1719759053067,-430.57,0.00014254,3]
[330760354,1719759053077,-500.0,0.00014254,3]
[330760355,1719759053087,-500.0,0.00014254,3]
[330760356,1719759053099,-500.0,0.00014254,3]
[330760357,1719759053109,-500.0,0.00014254,3]
[330760358,1719759053119,-500.0,0.00014254,3]
[330760359,1719759053129,-600.59,0.00014254,3]
[330760360,1719759053139,-500.0,0.00014271,2]
[330760361,1719759053149,-500.0,0.00014353,3]
[330760362,1719759053158,-500.0,0.00014353,3]
[330760363,1719759053168,-529.31,0.00014353,3]
[330760364,1719759053178,-500.0,0.00014353,3]
[330760365,1719759053188,-699.49,0.00014353,3]
[330760366,1719759053198,-500.0,0.00014353,3]
[330760367,1719759053208,-284.9,0.00014353,3]
[330760368,1719759053218,-500.0,0.00014353,3]
[330760369,1719759053229,-150.0,0.00014353,3]
[330760370,1719759053239,-500.0,0.00014353,3]
[330760371,1719759053251,-500.0,0.00014353,3]
[330760372,1719759053261,-496.68,0.00014353,3]
[330760373,1719759053271,-392.92,0.00014353,3]
[330760374,1719759053281,-500.0,0.00014353,3]
[330760376,1719759053291,-500.0,0.00014353,3]
[330760377,1719759053300,-500.0,0.00014353,3]
[330760378,1719759053310,-500.0,0.00014353,3]
[330760379,1719759053320,-500.0,0.00014353,3]
[330760380,1719759053329,-500.0,0.00014353,3]
[330760381,1719759053340,-264.49,0.00014353,3]
[330760382,1719759053350,-791.92,0.00014353,3]
[330760383,1719759053360,-472.36,0.00014353,3]
[330760384,1719759053370,-506.15,0.00014353,3]
[330760385,1719759053380,-500.0,0.00014353,3]
[330760386,1719759053390,-500.0,0.00014353,3]
[330760387,1719759053400,-500.0,0.00014353,3]
[330760388,1719759053413,-500.0,0.00014353,3]
[330760389,1719759053423,-579.92,0.00014353,3]
[330760390,1719759053434,-476.43,0.00014353,3]
[330760391,1719759053444,-522.29,0.00014353,3]
[330760392,1719759053454,-500.0,0.00014353,3]
[330760393,1719759053464,-1002.91,0.00014353,3]
[330760394,1719759053474,-500.0,0.00014353,3]
[330760395,1719759053485,-500.0,0.00014353,3]
[330760396,1719759053496,-500.0,0.00014353,3]
[330760397,1719759053507,-500.0,0.00014353,3]
[330760398,1719759053517,-358.27,0.00014354,3]
[330760399,1719759053526,-500.0,0.00014355,3]
[330760400,1719759053536,-500.0,0.00014355,3]
[330760401,1719759053546,-500.0,0.00014355,3]
[330760402,1719759053558,-500.0,0.00014355,3]
[330760403,1719759053568,-500.0,0.00014355,3]
[330760404,1719759053578,-500.0,0.00014355,3]
[330760405,1719759053588,-500.0,0.00014355,3]
[330760406,1719759053598,-500.0,0.00014355,3]
[330760407,1719759053608,-500.0,0.00014355,3]
[330760408,1719759053620,-500.0,0.00014355,3]
[330760409,1719759053630,-500.0,0.00014355,3]
[330760410,1719759053640,-500.0,0.00014355,3]